fUST/lending_fUST_20250508
["ID","MTS","AMOUNT","RATE_DAILY","PERIOD"]
[360257342,1746669032809,-400.0,0.00012108,2]
[360257344,1746669032819,-400.0,0.00012108,2]
[360257346,1746669032830,-2408.92,0.00012108,2]
[360257348,1746669032840,-400.0,0.00012108,2]
[360257350,1746669032850,-148.49036707,0.00012108,2]
[360257352,1746669032863,-251.50963293,0.00012108,2]
[360257354,1746669032873,-400.0,0.00012108,2]
[360257356,1746669032882,-400.0,0.00012108,2]
[360257358,1746669032892,-400.0,0.00012108,2]
[360257360,1746669032901,-400.0,0.00012108,2]
[360257362,1746669032911,-403.42818203,0.00012108,2]
[360257364,1746669032921,-400.0,0.00012108,2]
[360257366,1746669032930,-546.53,0.00012108,2]
[360257369,1746669032940,-6073.69,0.00012108,2]
[360257371,1746669032950,-400.0,0.00012108,2]
[360257373,1746669032960,-400.0,0.00012108,2]
[360257374,1746669032969,-400.0,0.00012108,2]
[360257376,1746669032980,-1016.34,0.00012108,2]
[360257378,1746669032989,-1904.81,0.00012108,2]
[360257380,1746669032999,-451.71,0.00012108,2]
[360257382,1746669033008,-1045.86,0.00012108,2]
[360257385,1746669033019,-1680.09,0.00012108,2]
[360257386,1746669033028,-410.08277436,0.00012108,2]
[360257388,1746669033037,-400.0,0.00012108,2]
[360257390,1746669033047,-400.0,0.00012108,2]
[360257392,1746669033057,-190.06033542,0.00012108,2]
[360257394,1746669033067,-2242.82,0.00012108,2]
[360257396,1746669033078,-336.49593325,0.00012108,2]
[360257398,1746669033089,-24900.0,0.00012109,2]
[360257400,1746669033099,-1820.9,0.00012329,2]
[360257402,1746669033109,-1517.42,0.00012329,2]
[360257404,1746669033119,-1264.52,0.00012329,2]
[360257406,1746669033129,-1053.76,0.00012329,2]
[360257408,1746669033139,-878.14,0.00012329,2]
[360257410,1746669033149,-731.78,0.00012329,2]
[360257412,1746669033160,-609.82,0.00012329,2]
[360257414,1746669033170,-508.18,0.00012329,2]
[360257416,1746669033180,-423.48,0.00012329,2]
[360257418,1746669033190,-352.9,0.00012329,2]
[360257420,1746669033201,-294.09,0.00012329,2]
[360257422,1746669033211,-245.07,0.00012329,2]
[360257424,1746669033221,-204.23,0.00012329,2]
[360257426,1746669033230,-170.19,0.00012329,2]
[360257428,1746669033241,-11.80276027,0.00012329,2]
[360257431,1746669033258,-839.16723973,0.00012329,2]
[360257433,1746669033268,-400.0,0.00012381,2]
[360257435,1746669033278,-400.0,0.00012381,2]
[360257437,1746669033288,-409.04250816,0.00012382,2]
[360257439,1746669033299,-400.0,0.00012382,2]
[360257441,1746669033310,-400.0,0.00012382,2]
[360257443,1746669033320,-96.59072819,0.00012382,2]
[360258273,1746669046466,-1747.6,0.00012108,2]
[360258275,1746669046476,-400.0,0.00012108,2]
[360258277,1746669046486,-315.64909387,0.00012382,2]
[360258279,1746669046496,-439.77353157,0.00012382,2]
[360258282,1746669046507,-410.83318434,0.00012382,2]
[360258284,1746669046517,-411.89955791,0.00012382,2]
[360258286,1746669046526,-409.19932202,0.00012382,2]
[360258288,1746669046537,-410.77495671,0.00012382,2]
[360258290,1746669046547,-411.36783577,0.00012382,2]
[360258292,1746669046557,-400.0,0.00012382,2]
[360258294,1746669046566,-400.0,0.00012382,2]
[360258296,1746669046576,-402.3381913,0.00012382,2]
[360258298,1746669046585,-400.0,0.00012382,2]
[360258300,1746669046596,-400.0,0.00012382,2]
[360258302,1746669046605,-406.21651518,0.00012382,2]
[360258304,1746669046614,-400.0,0.00012382,2]
[360258306,1746669046624,-400.0,0.00012382,2]
[360258308,1746669046634,-484.28,0.00012382,2]
[360258310,1746669046643,-403.60980109,0.00012382,2]
[360258312,1746669046654,-400.0,0.00012382,2]
[360258314,1746669046663,-906.0,0.00012382,2]
[360258316,1746669046673,-400.0,0.00012382,2]
[360258318,1746669046683,-584.08,0.00012382,2]
[360258320,1746669046693,-400.0,0.00012382,2]
[360258322,1746669046702,-400.0,0.00012382,2]
[360258324,1746669046712,-2408.92,0.00012382,2]
[360258326,1746669046722,-400.0,0.00012382,2]
[360258328,1746669046732,-400.0,0.00012382,2]
[360258330,1746669046742,-51.74477229,0.00012382,2]
[360258368,1746669126115,2000.3652784,0.00011611,2]
[360258370,1746669159952,535.42,0.000219,31]
[360258371,1746669160013,535.42,0.000219,31]
[360258372,1746669160259,535.42,0.000219,31]
[360258373,1746669160311,535.42,0.000219,31]
[360258374,1746669160355,535.42,0.000219,31]
[360258375,1746669160404,535.42,0.000219,31]
[360258376,1746669160448,535.42,0.000219,31]
[360258377,1746669160492,535.42,0.000219,31]
[360258378,1746669160602,535.42,0.000219,31]
[360258379,1746669160643,535.42,0.000219,31]
[360258380,1746669160786,535.42,0.000219,31]
[360258381,1746669160841,535.42,0.000219,31]
[360258382,1746669160890,535.42,0.000219,31]
[360258383,1746669160930,535.42,0.000219,31]
[360258384,1746669160976,535.42,0.000219,31]
[360258385,1746669161020,535.42,0.000219,31]
[360258393,1746669532427,7096.271013,0.00011107,2]
[360258398,1746669713699,160.825587,0.00011106,2]
[360258401,1746669771936,449.79,0.000219,31]
[360258402,1746669771993,449.79,0.000219,31]
[360258403,1746669772103,449.79,0.000219,31]
[360258404,1746669772164,449.79,0.000219,31]
[360258405,1746669772224,449.79,0.000219,31]
[360258406,1746669772267,449.79,0.000219,31]
[360258407,1746669772317,449.79,0.000219,31]
[360258408,1746669772365,449.79,0.000219,31]
[360258409,1746669772434,449.79,0.000219,31]
[360258410,1746669772476,449.79,0.000219,31]
[360258411,1746669772788,449.79,0.000219,31]
[360258412,1746669772847,449.79,0.000219,31]
[360258413,1746669772891,449.79,0.000219,31]
[360258414,1746669772938,449.79,0.000219,31]
[360258415,1746669772986,449.79,0.000219,31]
[360258416,1746669773031,449.79,0.000219,31]
[360258433,1746669951411,151.0,0.00011107,2]
[360258434,1746669952618,151.0,0.00011107,2]
[360258435,1746669954108,151.0,0.00011107,2]
[360258436,1746669955118,151.0,0.00011107,2]
[360258437,1746669956501,151.0,0.00011107,2]
[360258438,1746669957803,151.0,0.00011107,2]
[360258439,1746669958907,151.0,0.00011107,2]
[360258440,1746669960014,285.85413055,0.00011107,2]
[360258465,1746670232455,-193.47017487,0.00012006,2]
[360258467,1746670232466,-281.99168743,0.00012007,2]
[360258469,1746670232478,-718.00831257,0.00012007,2]
[360258470,1746670232488,-193.47017487,0.00012008,2]
[360258471,1746670232498,-2447.47544506,0.000121,2]
[360258472,1746670232561,-2552.52455494,0.000121,2]
[360258473,1746670232571,-300.0,0.00012102,2]
[360258474,1746670232581,-300.0,0.00012103,2]
[360258475,1746670232590,-1200.0,0.00012103,2]
[360258476,1746670232600,-400.0,0.00012103,2]
[360258477,1746670232610,-400.0,0.00012103,2]
[360258478,1746670232619,-356.95222692,0.00012104,2]
[360258479,1746670232629,-830.5,0.00012104,2]
[360258480,1746670232638,-535.4,0.00012104,2]
[360258481,1746670232649,-2208.18,0.00012104,2]
[360258482,1746670232659,-400.0,0.00012104,2]
[360258483,1746670232668,-400.0,0.00012104,2]
[360258484,1746670232678,-523.76,0.00012104,2]
[360258485,1746670232688,-1343.04136635,0.00012104,2]
[360258486,1746670234995,298.80451497,0.00011906,2]
[360258496,1746670238502,-435.69,0.00012103,2]
[360258497,1746670238512,-249.86655885,0.00012103,2]
[360258498,1746670238522,-3566.29703528,0.00012104,2]
[360258499,1746670238535,-911.28159837,0.00012104,2]
[360258501,1746670238545,-400.0,0.00012104,2]
[360258502,1746670238554,-974.0,0.00012104,2]
[360258504,1746670238564,-1825.44,0.00012104,2]
[360258506,1746670238573,-432.89,0.00012104,2]
[360258508,1746670238583,-1002.28,0.00012104,2]
[360258510,1746670238592,-1610.08,0.00012104,2]
[360258512,1746670238602,-400.0,0.00012104,2]
[360258514,1746670238613,-2149.37,0.00012104,2]
[360258516,1746670238622,-400.0,0.00012104,2]
[360258518,1746670238632,-278.77730633,0.00012104,2]
[360258520,1746670238642,-400.0,0.00012105,2]
[360258522,1746670238652,-409.41569825,0.00012105,2]
[360258524,1746670238662,-443.93,0.00012105,2]
[360258526,1746670238672,-400.0,0.00012105,2]
[360258528,1746670238682,-400.0,0.00012105,2]
[360258530,1746670238692,-400.0,0.00012105,2]
[360258532,1746670238701,-400.0,0.00012105,2]
[360258534,1746670238712,-400.0,0.00012105,2]
[360258537,1746670238722,-400.0,0.00012105,2]
[360258538,1746670238731,-320.16982173,0.00012105,2]
[360258540,1746670238741,-409.60659237,0.00012105,2]
[360258543,1746670238752,-402.21877273,0.00012105,2]
[360258545,1746670238761,-400.0,0.00012105,2]
[360258547,1746670238770,-297.81651967,0.00012105,2]
[360258549,1746670238780,-1605.54,0.00012105,2]
[360258551,1746670238789,-400.0,0.00012105,2]
[360258553,1746670238799,-400.0,0.00012105,2]
[360258555,1746670238809,-430.23,0.00012105,2]
[360258557,1746670238819,-420.30321935,0.00012105,2]
[360258558,1746670238828,-873.16,0.00012105,2]
[360258560,1746670238838,-404.43790378,0.00012105,2]
[360258562,1746670238847,-1096.2,0.00012105,2]
[360258564,1746670238857,-1033.93,0.00012105,2]
[360258566,1746670238866,-400.0,0.00012105,2]
[360258568,1746670238875,-434.17,0.00012105,2]
[360258570,1746670238884,-400.0,0.00012105,2]
[360258572,1746670238894,-1327.43,0.00012105,2]
[360258574,1746670238903,-585.21,0.00012105,2]
[360258576,1746670238912,-2654.67,0.00012105,2]
[360258578,1746670238922,-410.32692168,0.00012105,2]
[360258580,1746670238932,-170.29808694,0.00012105,2]
[360258582,1746670238942,-400.0,0.00012105,2]
[360258584,1746670238954,-400.0,0.00012105,2]
[360258586,1746670238963,-400.0,0.00012105,2]
[360258588,1746670238973,-400.0,0.00012105,2]
[360258590,1746670238983,-400.0,0.00012105,2]
[360258592,1746670238992,-400.0,0.00012105,2]
[360258594,1746670239003,-407.44783474,0.00012105,2]
[360258596,1746670239014,-400.0,0.00012105,2]
[360258598,1746670239026,-400.0,0.00012105,2]
[360258600,1746670239037,-1687.25,0.00012105,2]
[360258602,1746670239047,-1185.17,0.00012105,2]
[360258604,1746670239056,-486.62,0.00012105,2]
[360258605,1746670239066,-400.0,0.00012105,2]
[360258607,1746670239076,-1849.28,0.00012105,2]
[360258609,1746670239086,-400.0,0.00012105,2]
[360258611,1746670239096,-400.0,0.00012105,2]
[360258613,1746670239106,-916.37,0.00012105,2]
[360258615,1746670239115,-422.20932323,0.00012105,2]
[360258617,1746670239125,-400.0,0.00012105,2]
[360258619,1746670239134,-4251.87,0.00012105,2]
[360258621,1746670239144,-1526.48,0.00012105,2]
[360258623,1746670239154,-400.0,0.00012106,2]
[360258625,1746670239164,-440.35023641,0.00012106,2]
[360258627,1746670239174,-406.90041851,0.00012106,2]
[360258629,1746670239184,-400.0,0.00012106,2]
[360258631,1746670239194,-413.4484627,0.00012106,2]
[360258633,1746670239204,-408.11584042,0.00012106,2]
[360258635,1746670239214,-407.46,0.00012106,2]
[360258637,1746670239224,-470.68,0.00012106,2]
[360258639,1746670239234,-400.0,0.00012106,2]
[360258641,1746670239245,-400.0,0.00012106,2]
[360258642,1746670239255,-400.0,0.00012106,2]
[360258643,1746670239265,-400.0,0.00012106,2]
[360258644,1746670239276,-400.0,0.00012106,2]
[360258645,1746670239286,-400.0,0.00012106,2]
[360258646,1746670239296,-400.0,0.00012106,2]
[360258647,1746670239306,-447.18,0.00012106,2]
[360258648,1746670239316,-237.59290272,0.00012106,2]
[360260259,1746670308300,836.57871076,0.00011906,2]
[360260264,1746670384383,377.86,0.000219,31]
[360260265,1746670384443,377.86,0.000219,31]
[360260266,1746670384521,377.86,0.000219,31]
[360260267,1746670384611,377.86,0.000219,31]
[360260268,1746670384657,377.86,0.000219,31]
[360260270,1746670384728,377.86,0.000219,31]
[360260271,1746670384806,377.86,0.000219,31]
[360260272,1746670384851,377.86,0.000219,31]
[360260273,1746670384915,377.86,0.000219,31]
[360260274,1746670385182,377.86,0.000219,31]
[360260275,1746670385224,377.86,0.000219,31]
[360260276,1746670385268,377.86,0.000219,31]
[360260277,1746670385312,377.86,0.000219,31]
[360260279,1746670385359,377.86,0.000219,31]
[360260280,1746670385449,377.86,0.000219,31]
[360260281,1746670385571,377.86,0.000219,31]
[360260309,1746670940765,24900.0,0.00011103,2]
[360260313,1746670996391,313.66,0.000219,31]
[360260314,1746670996457,313.66,0.000219,31]
[360260315,1746670996517,313.66,0.000219,31]
[360260316,1746670996568,313.66,0.000219,31]
[360260317,1746670996632,313.66,0.000219,31]
[360260318,1746670996694,313.66,0.000219,31]
[360260319,1746670996755,313.66,0.000219,31]
[360260320,1746670997017,313.66,0.000219,31]
[360260321,1746670997065,313.66,0.000219,31]
[360260322,1746670997105,313.66,0.000219,31]
[360260323,1746670997145,313.66,0.000219,31]
[360260324,1746670997197,313.66,0.000219,31]
[360260325,1746670997244,313.66,0.000219,31]
[360260326,1746670997288,313.66,0.000219,31]
[360260327,1746670997327,313.66,0.000219,31]
[360260328,1746670997369,313.66,0.000219,31]
[360260330,1746671060259,250.0,0.00011972,2]
[360260390,1746671432747,-300.0,0.00012098,2]
[360260392,1746671432759,-181.84569023,0.00012098,2]
[360260449,1746671438689,-1018.15430977,0.00012098,2]
[360260450,1746671438700,-300.0,0.00012098,2]
[360260451,1746671438710,-500.0,0.00012098,2]
[360260452,1746671438720,-335.49342365,0.00012098,2]
[360260453,1746671438731,-500.0,0.00012098,2]
[360260454,1746671438742,-251.85869142,0.00012098,2]
[360260455,1746671438754,-199.33273389,0.00012098,2]
[360260456,1746671438764,-400.0,0.00012099,2]
[360260457,1746671438774,-400.0,0.00012099,2]
[360260458,1746671438783,-420.83168694,0.00012099,2]
[360260459,1746671438793,-501.94,0.00012099,2]
[360260460,1746671438803,-933.41,0.00012099,2]
[360260461,1746671438812,-400.0,0.00012099,2]
[360260462,1746671438823,-960.52,0.00012099,2]
[360260463,1746671438835,-400.0,0.00012099,2]
[360260464,1746671438844,-400.0,0.00012099,2]
[360260466,1746671438854,-400.0,0.00012099,2]
[360260468,1746671438863,-400.0,0.00012099,2]
[360260470,1746671438873,-174.90659119,0.00012099,2]
[360260472,1746671438883,-400.0,0.000121,2]
[360260473,1746671438892,-1538.64,0.000121,2]
[360260474,1746671438902,-400.0,0.000121,2]
[360260475,1746671438911,-836.78,0.000121,2]
[360260476,1746671438922,-412.3,0.000121,2]
[360260478,1746671438932,-990.85,0.000121,2]
[360260481,1746671438942,-1050.52,0.000121,2]
[360260482,1746671438951,-416.08,0.000121,2]
[360260483,1746671438961,-400.0,0.000121,2]
[360260484,1746671438971,-1272.12,0.000121,2]
[360260485,1746671438980,-2544.06,0.000121,2]
[360260486,1746671438989,-400.0,0.000121,2]
[360260487,1746671438999,-400.0,0.000121,2]
[360260488,1746671439008,-400.0,0.000121,2]
[360260489,1746671439018,-400.0,0.000121,2]
[360260490,1746671439027,-400.0,0.000121,2]
[360260491,1746671439036,-795.89,0.000121,2]
[360260492,1746671439046,-1545.07439653,0.000121,2]
[360260543,1746671440984,-71.86560347,0.000121,2]
[360260545,1746671440995,-513.1,0.000121,2]
[360260547,1746671441004,-466.34,0.000121,2]
[360260549,1746671441014,-1135.79,0.000121,2]
[360260551,1746671441023,-2116.17,0.000121,2]
[360260552,1746671441033,-1772.23,0.000121,2]
[360260554,1746671441042,-168.04065107,0.000121,2]
[360260556,1746671441052,-878.19,0.000121,2]
[360260558,1746671441062,-400.0,0.000121,2]
[360260560,1746671441071,-5578.09,0.000121,2]
[360260562,1746671441080,-4074.71,0.000121,2]
[360260564,1746671441091,-400.0,0.000121,2]
[360260565,1746671441101,-1345.14,0.000121,2]
[360260567,1746671441110,-1462.87,0.000121,2]
[360260569,1746671441119,-1749.38,0.000121,2]
[360260571,1746671441128,-582.86,0.000121,2]
[360260573,1746671441137,-591.74,0.000121,2]
[360260574,1746671441146,-414.85,0.000121,2]
[360260576,1746671441155,-1543.0,0.000121,2]
[360260578,1746671441165,-799.89,0.000121,2]
[360260580,1746671441174,-2059.81,0.000121,2]
[360260582,1746671441183,-1554.81,0.000121,2]
[360260583,1746671441192,-1658.12,0.000121,2]
[360260585,1746671441202,-400.0,0.000121,2]
[360260587,1746671441211,-400.0,0.000121,2]
[360260589,1746671441221,-512.7,0.000121,2]
[360260591,1746671441229,-400.0,0.000121,2]
[360260593,1746671441239,-229.32106647,0.000121,2]
[360260594,1746671441249,-417.54,0.00012101,2]
[360260596,1746671441259,-400.0,0.00012101,2]
[360260597,1746671441268,-412.03472804,0.00012101,2]
[360260598,1746671441277,-400.0,0.00012101,2]
[360260599,1746671441286,-400.0,0.00012101,2]
[360260600,1746671441296,-451.07,0.00012101,2]
[360260601,1746671441307,-400.0,0.00012101,2]
[360260602,1746671441318,-400.0,0.00012101,2]
[360260603,1746671441327,-428.55,0.00012101,2]
[360260604,1746671441341,-400.0,0.00012101,2]
[360260605,1746671441354,-400.0,0.00012101,2]
[360260606,1746671441364,-2546.79,0.00012101,2]
[360260607,1746671441373,-169.43769534,0.00012101,2]
[360260608,1746671441384,-578.08,0.00012101,2]
[360260609,1746671441394,-400.0,0.00012101,2]
[360260610,1746671441408,-500.56,0.00012101,2]
[360260611,1746671441424,-772.26,0.00012101,2]
[360260612,1746671441435,-863.8,0.00012101,2]
[360260613,1746671441446,-449.37,0.00012101,2]
[360260614,1746671441456,-400.0,0.00012101,2]
[360260615,1746671441465,-400.0,0.00012101,2]
[360260617,1746671441475,-400.0,0.00012101,2]
[360260619,1746671441485,-382.52079843,0.00012101,2]
[360260620,1746671441494,-400.0,0.00012101,2]
[360260622,1746671441503,-400.0,0.00012101,2]
[360260624,1746671441512,-539.12,0.00012101,2]
[360260626,1746671441522,-400.0,0.00012101,2]
[360260627,1746671441531,-631.91,0.00012101,2]
[360260629,1746671441542,-455.07,0.00012101,2]
[360260631,1746671441551,-400.0,0.00012101,2]
[360260633,1746671441560,-400.0,0.00012101,2]
[360260635,1746671441570,-488.2,0.00012101,2]
[360260637,1746671441580,-400.0,0.00012101,2]
[360260638,1746671441592,-400.0,0.00012101,2]
[360260640,1746671441602,-400.0,0.00012101,2]
[360260642,1746671441612,-400.0,0.00012101,2]
[360260644,1746671441621,-400.0,0.00012101,2]
[360260646,1746671441631,-500.0,0.00012101,2]
[360260648,1746671441640,-400.0,0.00012101,2]
[360260650,1746671441649,-400.0,0.00012101,2]
[360260652,1746671441659,-400.0,0.00012101,2]
[360260653,1746671441670,-400.0,0.00012101,2]
[360260655,1746671441680,-400.0,0.00012101,2]
[360260657,1746671441689,-1008.24,0.00012101,2]
[360260658,1746671441699,-400.0,0.00012101,2]
[360260660,1746671441710,-400.0,0.00012101,2]
[360260661,1746671441719,-314.42510319,0.00012101,2]
[360260663,1746671441728,-1352.04,0.00012101,2]
[360260665,1746671441738,-532.28,0.00012101,2]
[360260667,1746671441748,-588.44,0.00012101,2]
[360260668,1746671441758,-151.566699,0.00012101,2]
[360260670,1746671441767,-400.0,0.00012101,2]
[360260672,1746671441777,-400.0,0.00012101,2]
[360260674,1746671441786,-400.0,0.00012101,2]
[360260675,1746671441795,-1227.91,0.00012101,2]
[360260677,1746671441806,-331.56422932,0.00012101,2]
[360260679,1746671441816,-404.00611864,0.00012101,2]
[360260681,1746671441826,-5587.3,0.00012101,2]
[360260682,1746671441838,-400.0,0.00012101,2]
[360260684,1746671441848,-1755.07,0.00012101,2]
[360260686,1746671441857,-151.0,0.00012101,2]
[360260688,1746671441867,-151.0,0.00012101,2]
[360260690,1746671441877,-219.990451,0.00012101,2]
[360260691,1746671441886,-400.0,0.00012101,2]
[360260693,1746671441895,-400.0,0.00012101,2]
[360260695,1746671441905,-219.990451,0.00012101,2]
[360260697,1746671441915,-887.41,0.00012101,2]
[360260699,1746671441925,-400.0,0.00012101,2]
[360260700,1746671441934,-405.27692314,0.00012101,2]
[360260702,1746671441944,-5922.43,0.00012101,2]
[360260704,1746671441954,-151.0,0.00012101,2]
[360260706,1746671441963,-702.32,0.00012101,2]
[360260707,1746671441973,-957.81,0.00012101,2]
[360260709,1746671441982,-400.0,0.00012101,2]
[360260711,1746671441992,-2352.37,0.00012101,2]
[360260712,1746671442001,-400.0,0.00012101,2]
[360260714,1746671442011,-579.19,0.00012101,2]
[360260716,1746671442021,-400.0,0.00012101,2]
[360260718,1746671442030,-2554.56,0.00012101,2]
[360260720,1746671442039,-400.0,0.00012101,2]
[360260722,1746671442049,-410.96999076,0.00012101,2]
[360260723,1746671442058,-400.0,0.00012101,2]
[360260725,1746671442068,-400.0,0.00012101,2]
[360260727,1746671442077,-400.0,0.00012101,2]
[360260729,1746671442087,-659.45,0.00012101,2]
[360260730,1746671442097,-867.97,0.00012101,2]
[360260732,1746671442106,-400.0,0.00012101,2]
[360260734,1746671442116,-420.697581,0.00012101,2]
[360260735,1746671442125,-420.697581,0.00012101,2]
[360260737,1746671442135,-420.697581,0.00012101,2]
[360260738,1746671442144,-400.0,0.00012101,2]
[360260740,1746671442154,-652.23,0.00012101,2]
[360260742,1746671442163,-420.697581,0.00012101,2]
[360260744,1746671442172,-420.697581,0.00012101,2]
[360260745,1746671442181,-420.697581,0.00012101,2]
[360260746,1746671442191,-151.0,0.00012101,2]
[360260747,1746671442200,-151.0,0.00012101,2]
[360260748,1746671442209,-277.541134,0.00012101,2]
[360260749,1746671442219,-1163.04,0.00012101,2]
[360260750,1746671442228,-400.0,0.00012101,2]
[360260751,1746671442237,-151.0,0.00012101,2]
[360260752,1746671442247,-152.196492,0.00012101,2]
[360260753,1746671442257,-400.0,0.00012101,2]
[360260754,1746671442266,-1341.28,0.00012101,2]
[360260755,1746671442276,-400.0,0.00012101,2]
[360260756,1746671442285,-743.41,0.00012101,2]
[360260757,1746671442295,-400.0,0.00012101,2]
[360260758,1746671442304,-400.0,0.00012101,2]
[360260759,1746671442313,-400.0,0.00012101,2]
[360260760,1746671442324,-1762.0,0.00012101,2]
[360260761,1746671442333,-400.0,0.00012101,2]
[360260762,1746671442346,-168.72228909,0.00012101,2]
[360260763,1746671442356,-1815.64326841,0.00012102,2]
[360260764,1746671442366,-425.43,0.00012102,2]
[360260765,1746671442376,-400.0,0.00012102,2]
[360260766,1746671442387,-400.0,0.00012102,2]
[360260767,1746671442397,-400.0,0.00012102,2]
[360260768,1746671442406,-400.0,0.00012102,2]
[360260769,1746671442416,-400.0,0.00012102,2]
[360260770,1746671442427,-400.0,0.00012102,2]
[360260771,1746671442437,-400.0,0.00012102,2]
[360260772,1746671442447,-400.0,0.00012102,2]
[360260773,1746671442456,-400.0,0.00012102,2]
[360260774,1746671442466,-400.0,0.00012102,2]
[360260775,1746671442475,-400.0,0.00012102,2]
[360260776,1746671442484,-400.0,0.00012102,2]
[360260777,1746671442494,-400.0,0.00012102,2]
[360260778,1746671442503,-400.0,0.00012102,2]
[360260779,1746671442513,-410.16312576,0.00012102,2]
[360260780,1746671442523,-400.0,0.00012102,2]
[360260781,1746671442532,-253.63392059,0.00012102,2]
[360260782,1746671442544,-423.77749114,0.00012102,2]
[360260783,1746671442553,-400.0,0.00012102,2]
[360260784,1746671442563,-406.73755468,0.00012102,2]
[360260785,1746671442573,-400.0,0.00012102,2]
[360260786,1746671442582,-407.93946403,0.00012102,2]
[360260787,1746671442594,-400.0,0.00012102,2]
[360260788,1746671442604,-151.0,0.00012102,2]
[360260789,1746671442614,-151.0,0.00012102,2]
[360260790,1746671442623,-407.13238027,0.00012102,2]
[360260791,1746671442633,-151.0,0.00012102,2]
[360260792,1746671442642,-151.0,0.00012102,2]
[360260793,1746671442652,-400.0,0.00012102,2]
[360260794,1746671442662,-361.92478448,0.00012102,2]
[360260795,1746671442671,-400.0,0.00012102,2]
[360260796,1746671442680,-403.7124559,0.00012102,2]
[360260797,1746671442690,-87.6568885,0.00012102,2]
[360260926,1746671600216,-300.0,0.00012098,2]
[360260927,1746671600242,-400.0,0.00012099,2]
[360260928,1746671600264,-400.14,0.00012099,2]
[360260929,1746671600287,-1474.53,0.00012099,2]
[360260930,1746671600309,-400.0,0.00012099,2]
[360260931,1746671600330,-275.08613029,0.00012099,2]
[360260932,1746671600352,-407.7,0.00012099,2]
[360260933,1746671600374,-400.0,0.00012099,2]
[360260934,1746671600395,-400.0,0.00012099,2]
[360260935,1746671600421,-400.0,0.00012099,2]
[360260936,1746671600444,-400.0,0.00012099,2]
[360260937,1746671600466,-1006.75,0.00012099,2]
[360260938,1746671600489,-432.28,0.00012099,2]
[360260939,1746671600785,-400.0,0.00012099,2]
[360260940,1746671600807,-302.27455169,0.00012099,2]
[360260941,1746671600829,-400.0,0.00012099,2]
[360260942,1746671600851,-400.0,0.00012099,2]
[360260943,1746671600872,-400.0,0.00012099,2]
[360260944,1746671600894,-400.0,0.00012099,2]
[360260945,1746671600916,-400.0,0.00012099,2]
[360260946,1746671600939,-410.69,0.00012099,2]
[360260947,1746671600961,-400.0,0.00012099,2]
[360260948,1746671600985,-400.0,0.00012099,2]
[360260949,1746671601007,-400.0,0.00012099,2]
[360260950,1746671601029,-400.0,0.00012099,2]